{"text_format":"1","workbook":"xlsx","n_sheets":3,"sheets":["INFRAESTRUCTURA","A","AP"],"not_rendered":{"charts":0,"images":0,"macros":1,"external_links":0,"defined_names":21,"comments":0,"pivot_tables":0},"unopened":[],"bounds":{"document_bytes":16777216,"sheet_cells":100000,"rows_first":2000,"rows_last":500,"rows_between":2000,"halvings":0,"cell_chars":16384,"cell_head_chars":4096},"cells_cut":0,"cells_raw":0,"read":"whole","date_system":"1900"}

{"sheet":"INFRAESTRUCTURA","index":0,"n_rows":19,"n_cols":17,"rows_kept":19,"cut":false,"hidden":false,"merged":[[2,0,2,16],[3,2,3,4],[3,8,3,9],[16,0,17,16]]}
[]
[]
["ESTRUCTURA PRELIMINAR DE COSTOS - INFRAESTRUCTURA"]
["N°","TIPO DE IOARR","UNIDAD PRODUCTORA",null,null,"SECTOR RESPONSABLE","CATEGORÍA/CLASE DE UP","ÁREA PRODUCTIVA","AMBIENTE",null,"ACTIVO ESTRATÉGICO","DESCRIPCIÓN DEL ACTIVO ESTRATÉGICO","ACCIÓN","UNIDAD DE MEDIDA *","METRADO","COSTO UNITARIO","COSTO TOTAL"]
[{"$f":"IFERROR(IF(COUNTA(D5),1,\" \"),\" \")","v":" "},null,{"$f":"IF(D5=\"MERCADO DE ABASTOS\",\"MERCADO\",IF(D5=\"CITE/UT\",\"CITE\",IF(D5=\"CENTRO ACUÍCOLA\",\"CA\",IF(D5=\"DESEMBARCADERO PESQUERO ARTESANAL\",\"DPA\",IF(D5=\"CENTRO DE ENTRENAMIENTO PESQUERO\",\"CEP\",IF(D5=\"LABORATORIO DE METROLOGÍA (INACAL)\",\"INACAL\",IF(D5=\"LABORATORIO DE ANÁLISIS DE SANIDAD E INOCUIDAD\",\"SANIPES\",IF(D5=\"CENTRO DE INVESTIGACIÓN CIENTÍFICA\",\"CIC\",IF(D5=\"SEDES INSTITUCIONALES\",\"SEDES\",IF(D5=\"TIC\",\"TIC\"))))))))))","v":false},null,{"$f":"IF(D5=\"MERCADO DE ABASTOS\",\"MA\",IF(D5=\"CITE/UT\",\"CITEUT\",IF(D5=\"CENTRO ACUÍCOLA\",\"CACUICOLA\",IF(D5=\"DESEMBARCADERO PESQUERO ARTESANAL\",\"DESEMBARCADERO\",IF(D5=\"CENTRO DE ENTRENAMIENTO PESQUERO\",\"CEPESQUERO\",IF(D5=\"LABORATORIO DE METROLOGÍA (INACAL)\",\"LM\",IF(D5=\"LABORATORIO DE ANÁLISIS DE SANIDAD E INOCUIDAD\",\"LASI\",IF(D5=\"CENTRO DE INVESTIGACIÓN CIENTÍFICA\",\"CDI\",IF(D5=\"SEDES INSTITUCIONALES\",\"SEINS\",IF(D5=\"TIC\",\"TEC\"))))))))))","v":false},{"$f":"IF(OR(D5=\"SEDES INSTITUCIONALES\",D5=\"TIC\"),\"PRESIDENCIA DEL CONSEJO DE MINISTROS\",\"PRODUCCIÓN\")","v":"PRODUCCIÓN"},null,null,{"$f":"IF(D5=\"MERCADO DE ABASTOS\",\"MDA\",IF(D5=\"CITE/UT\",\"CIP\",IF(D5=\"CENTRO ACUÍCOLA\",\"CAC\",IF(D5=\"DESEMBARCADERO PESQUERO ARTESANAL\",\"DESEM\",IF(D5=\"CENTRO DE ENTRENAMIENTO PESQUERO\",\"CDEP\",IF(D5=\"LABORATORIO DE METROLOGÍA (INACAL)\",\"LBM\",IF(D5=\"LABORATORIO DE ANÁLISIS DE SANIDAD E INOCUIDAD\",\"LBS\",IF(D5=\"CENTRO DE INVESTIGACIÓN CIENTÍFICA\",\"CDIC\",IF(D5=\"SEDES INSTITUCIONALES\",\"SINS\",IF(D5=\"TIC\",\"TDI\"))))))))))","v":false},null,null,null,null,null,null,null,{"$f":"+O5*P5","v":0}]
[{"$f":"IFERROR(IF(COUNTA(D6),A5+1,\" \"),\" \")","v":" "},null,false,null,{"$f":"IF(D6=\"MERCADO DE ABASTOS\",\"MA\",IF(D6=\"CITE/UT\",\"CITEUT\",IF(D6=\"CENTRO ACUÍCOLA\",\"CACUICOLA\",IF(D6=\"DESEMBARCADERO PESQUERO ARTESANAL\",\"DESEMBARCADERO\",IF(D6=\"CENTRO DE ENTRENAMIENTO PESQUERO\",\"CEPESQUERO\",IF(D6=\"LABORATORIO DE METROLOGÍA (INACAL)\",\"LM\",IF(D6=\"LABORATORIO DE ANÁLISIS DE SANIDAD E INOCUIDAD\",\"LASI\",IF(D6=\"CENTRO DE INVESTIGACIÓN CIENTÍFICA\",\"CDI\",IF(D6=\"SEDES INSTITUCIONALES\",\"SEINS\",IF(D6=\"TIC\",\"TEC\"))))))))))","v":false},"PRODUCCIÓN",null,null,{"$f":"IF(D6=\"MERCADO DE ABASTOS\",\"MDA\",IF(D6=\"CITE/UT\",\"CIP\",IF(D6=\"CENTRO ACUÍCOLA\",\"CAC\",IF(D6=\"DESEMBARCADERO PESQUERO ARTESANAL\",\"DESEM\",IF(D6=\"CENTRO DE ENTRENAMIENTO PESQUERO\",\"CDEP\",IF(D6=\"LABORATORIO DE METROLOGÍA (INACAL)\",\"LBM\",IF(D6=\"LABORATORIO DE ANÁLISIS DE SANIDAD E INOCUIDAD\",\"LBS\",IF(D6=\"CENTRO DE INVESTIGACIÓN CIENTÍFICA\",\"CDIC\",IF(D6=\"SEDES INSTITUCIONALES\",\"SINS\",IF(D6=\"TIC\",\"TDI\"))))))))))","v":false},null,null,null,null,null,null,null,{"$f":"+O6*P6","v":0}]
[{"$f":"IFERROR(IF(COUNTA(D7),A6+1,\" \"),\" \")","v":" "},null,{"$f":"IF(D7=\"MERCADO DE ABASTOS\",\"MERCADO\",IF(D7=\"CITE/UT\",\"CITE\",IF(D7=\"CENTRO ACUÍCOLA\",\"CA\",IF(D7=\"DESEMBARCADERO PESQUERO ARTESANAL\",\"DPA\",IF(D7=\"CENTRO DE ENTRENAMIENTO PESQUERO\",\"CEP\",IF(D7=\"LABORATORIO DE METROLOGÍA (INACAL)\",\"INACAL\",IF(D7=\"LABORATORIO DE ANÁLISIS DE SANIDAD E INOCUIDAD\",\"SANIPES\",IF(D7=\"CENTRO DE INVESTIGACIÓN CIENTÍFICA\",\"CIC\",IF(D7=\"SEDES INSTITUCIONALES\",\"SEDES\",IF(D7=\"TIC\",\"TIC\"))))))))))","v":false},null,false,"PRODUCCIÓN",null,null,false,null,null,null,null,null,null,null,0]
[{"$f":"IFERROR(IF(COUNTA(D8),A7+1,\" \"),\" \")","v":" "},null,{"$f":"IF(D8=\"MERCADO DE ABASTOS\",\"MERCADO\",IF(D8=\"CITE/UT\",\"CITE\",IF(D8=\"CENTRO ACUÍCOLA\",\"CA\",IF(D8=\"DESEMBARCADERO PESQUERO ARTESANAL\",\"DPA\",IF(D8=\"CENTRO DE ENTRENAMIENTO PESQUERO\",\"CEP\",IF(D8=\"LABORATORIO DE METROLOGÍA (INACAL)\",\"INACAL\",IF(D8=\"LABORATORIO DE ANÁLISIS DE SANIDAD E INOCUIDAD\",\"SANIPES\",IF(D8=\"CENTRO DE INVESTIGACIÓN CIENTÍFICA\",\"CIC\",IF(D8=\"SEDES INSTITUCIONALES\",\"SEDES\",IF(D8=\"TIC\",\"TIC\"))))))))))","v":false},null,false,"PRODUCCIÓN",null,null,false,null,null,null,null,null,null,null,0]
[" ",null,false,null,false,"PRODUCCIÓN",null,null,false,null,null,null,null,null,null,null,0]
[" ",null,false,null,false,"PRODUCCIÓN",null,null,false,null,null,null,null,null,null,null,0]
[" ",null,false,null,false,"PRODUCCIÓN",null,null,false,null,null,null,null,null,null,null,0]
[" ",null,false,null,false,"PRODUCCIÓN",null,null,false,null,null,null,null,null,null,null,0]
[" ",null,false,null,false,"PRODUCCIÓN",null,null,false,null,null,null,null,null,null,null,0]
[" ",null,false,null,false,"PRODUCCIÓN",null,null,false,null,null,null,null,null,null,null,0]
[" ",null,false,null,false,"PRODUCCIÓN",null,null,false,null,null,null,null,null,null,null,0]
[" ",null,false,null,false,"PRODUCCIÓN",null,null,false,null,null,null,null,null,null,null,0]
["* Rehabilitación. Para el caso de la infraestructura en red (redes de agua y alcantarillado, electrificación, riego, viales, entre otras), se recomienda emplear unidades de medida de longitud como unidad común. Asimismo, la intervención incluye acciones sobre activos estratégicos de infraestructura dañada, tales como edificaciones asociadas a la longitud de la red (extraído de la nota al pie 31 de la página 27 de los Lineamientos para la identificación y registro de las inversiones de optimización, de ampliación marginal, de rehabilitación y de reposición - IOARR, sétima versión: octubre 2023)."]
[]
["Nota: El costo de cada activo estratégico incluye utilidad, gastos generales, IGV, según corresponda."]

{"sheet":"A","index":1,"n_rows":22,"n_cols":11,"rows_kept":22,"cut":false,"hidden":true,"merged":[]}
[]
[null,"MDA","CIP","CAC","CDEP","DESEM","LBM","LBS","CDIC","SINS","TDI"]
["N°","MERCADO DE ABASTOS","CITE/UT","CENTRO ACUÍCOLA","CENTRO DE ENTRENAMIENTO PESQUERO","DESEMBARCADERO PESQUERO ARTESANAL","LABORATORIO DE METROLOGÍA (INACAL)","LABORATORIO DE ANÁLISIS DE SANIDAD E INOCUIDAD","CENTRO DE INVESTIGACIÓN CIENTÍFICA","SEDES INSTITUCIONALES","TIC"]
[1,"PUESTO HÚMEDO","POR DEFINIR","POR DEFINIR","AMBIENTE ADMINISTRATIVO","\tAMBIENTE COMPLEMENTARIO","LABORATORIO","AMBIENTE DE LABORATORIO DE SANIDAD E INOCUIDAD","POR DEFINIR","Ambiente administrativo","Cableado estructurado"]
[2,"ALMACEN O DEPOSITO","POR DEFINIR","POR DEFINIR","AMBIENTE COMPLEMENTARIO","AMBIENTE ADMINISTRATIVO",null,null,"POR DEFINIR","Edificación","Red de cableado horizontal"]
[3,"AMBIENTE ADMINISTRATIVO","POR DEFINIR","POR DEFINIR","AREA DE DESINFECCION","AREA DE ABRIGO DE PROTECCION",null,null,"POR DEFINIR","Estructura de protección","Red de cableado vertebral o backbone"]
[4,"AMBIENTE COMPLEMENTARIO","POR DEFINIR","POR DEFINIR","AUDITORIO","AREA DE COMERCIALIZACION DE RRHH"]
[5,"AMBIENTE DE SERVICIOS GENERALES","POR DEFINIR","POR DEFINIR","AULA DE CAPACITACION","AREA DE CONSERVACION EN FRIO"]
[6,"AREA DE CONTROL DE CALIDAD","POR DEFINIR","POR DEFINIR","AULA DE COMPUTO","AREA DE DESCARGA DE RRHH"]
[7,"AREA DE REFRIGERACION",null,null,"CAMARA DE ALMACENAMIENTO","AREA DE DESPACHO DIRECTO DE RRHH"]
[8,"CERCO PERIMETRICO",null,null,"MUELLE DE INSTRUCCIÓN","AREA DE PRODUCCION DE HIELO"]
[9,"DEPOSITO DE RESIDUOS SOLIDOS",null,null,"PISCINA CEP","AREA DE SERVICIOS COMPLEMENTARIOS"]
[10,"ESPACIOS DE CIRCULACION HORIZONTAL Y/O VERTICAL",null,null,"SALA DE INSTRUCCIÓN","AREA DE TRATAMIENTO PREVIO"]
[11,"MURO DE CONTENCION",null,null,"SALA DE PROCESAMIENTO","MUELLE"]
[12,"PATIO DE DESCARGA",null,null,"TALLER DE CAPACITACION EN MANTENIMIENTO"]
[13,"PUESTO COMPLEMENTARIO",null,null,"TANQUE DE INMERSION PARA BUCEO"]
[14,"PUESTO SECO"]
[15,"PUESTO SEMI-HUMEDO"]
[16,"SERVICIOS HIGIENICOS Y/O VESTIDORES"]
[17,"TECHO DE MERCADOS"]
[18,"TERRENO"]
[19,"ZONA DE ESTACIONAMIENTO"]

{"sheet":"AP","index":2,"n_rows":22,"n_cols":11,"rows_kept":22,"cut":false,"hidden":true,"merged":[]}
[null,"TIPO DE UP"]
[null,"MERCADO DE ABASTOS","CITE/UT","CENTRO ACUÍCOLA","CENTRO DE ENTRENAMIENTO PESQUERO","DESEMBARCADERO PESQUERO ARTESANAL","LABORATORIO DE METROLOGÍA (INACAL)","LABORATORIO DE ANÁLISIS DE SANIDAD E INOCUIDAD","CENTRO DE INVESTIGACIÓN CIENTÍFICA","SEDES INSTITUCIONALES","TIC"]
[null,"CATEGORÍA 1","UNIDAD TÉCNICA - UT","NO APLICA","NO APLICA","NO APLICA","LABORATORIOS FIJOS DE CALIBRACIÓN","NO APLICA","CENTRO DE INVESTIGACIÓN CIENTÍFICA TERRESTRE","SEDE CENTRAL","TIC"]
[null,"CATEGORÍA 2","CITE","NO APLICA","NO APLICA","NO APLICA","LABORATORIOS MÓVILES O ITINERANTES","NO APLICA","CENTRO DE INVESTIGACIÓN CIENTÍFICA FLOTANTE","SEDE PERIFÉRICA","TIC"]
[null,"CATEGORÍA 3",null,"NO APLICA","NO APLICA","NO APLICA",null,"NO APLICA",null,"OFICINA DESCONCENTRADA","TIC"]
[null,"CATEGORÍA 4",null,"NO APLICA","NO APLICA","NO APLICA",null,"NO APLICA",null,null,"TIC"]
[null,"CATEGORÍA 5",null,"NO APLICA","NO APLICA","NO APLICA",null,"NO APLICA",null,null,"TIC"]
[null,"MERCADO MAYORISTA"]
[null,"MERCADO MIXTO"]
[null,"MERCADO DE ABASTOS HIDROBIOLÓGICO"]
[null,"MERCADO DE ABASTOS RURAL"]
[]
[null,"ÁREA PRODUCTIVA"]
[null,"MA","CITEUT","CACUICOLA","CEPESQUERO","DESEMBARCADERO","LM","LASI","CDI","SEINS","TEC"]
[null,"ÁREA COMERCIAL","PLANTA PILOTO","INFRAESTRUCTURA HIDRÁULICA","ÁREA DE CAPACITACIÓN","ÁREA DE EMBARQUE/DESEMBARQUE","NO APLICA","NO APLICA","NO APLICA","ALTA DIRECCIÓN","GESTIÓN DE LA INFORMACIÓN"]
[null,"ÁREA DE ABASTECIMIENTO, CONTROL Y DESPACHO","LABORATORIO","ÁREA DE SEMILLAS","ÁREA DE ENTRENAMIENTO","ÁREA DE TRATAMIENTO PREVIO","NO APLICA","NO APLICA","NO APLICA","ÓRGANOS DE ASESORAMIENTO","SOPORTE TECNOLÓGICO"]
[null,"ÁREA DE ENERGÍA Y MANTENIMIENTO","ÁREA DE CAPACITACIÓN","ÁREA DE REPRODUCCIÓN",null,"ÁREA DE CONSERVACIÓN","NO APLICA","NO APLICA","NO APLICA","ÓRGANOS DE APOYO","DESARROLLO TECNOLÓGICO"]
[null,"ÁREA ADMINISTRATIVA Y SERVICIOS COMPLEMENTARIOS","ÁREA DE ADMINISTRACIÓN","ÁREA DE ALEVINAJE",null,"ÁREA DE DESPACHO","NO APLICA","NO APLICA","NO APLICA","ÓRGANOS DE LÍNEA"]
[null,"ÁREA DE RESIDUOS SÓLIDOS",null,"ÁREA DE JUVENILES",null,"ÁREA DE COMERCIALIZACIÓN","NO APLICA","NO APLICA","NO APLICA","ATENCIÓN AL CIUDADANO"]
[null,"OTRAS ÁREAS",null,"ÁREA DE ENGORDE",null,"EDIFICACIONES EN TIERRA","NO APLICA","NO APLICA","NO APLICA","ÁREA ADMINISTRATIVA"]
[null,null,null,"LABORATORIO",null,"EDIFICACIONES EN MAR","NO APLICA","NO APLICA","NO APLICA"]
[null,null,null,"ÁREA DE ENSEÑANZA"]